[Event "Polofinale MCR junioru 2023"]
[Site "Czech Republic"]
[Date "2023.11.16"]
[Round "7.26"]
[White "Andrle, Filip"]
[Black "Siles, Jan"]
[Result "1/2-1/2"]
[TimeControl "90 min per 40 moves + 15 min + 30 sec / move from move 1"]
[WhiteFideId "23718749"]
[BlackFideId "23715405"]
[WhiteElo "2005"]
[BlackElo "1829"]

1. e4 {[%emt 00:25:40]} d6 {[%clk 01:27:56]} {[%emt 00:02:34]} 2. d4 {[%clk
01:29:59]} {[%emt 00:01:25]} e5 {[%clk 01:26:08]} {[%emt 00:02:18]} 3. Nf3
{[%clk 01:29:42]} {[%emt 00:00:47]} Nd7 {[%clk 01:24:54]} {[%emt 00:01:44]} 4.
Nc3 {[%clk 01:26:38]} {[%emt 00:03:34]} Ngf6 {[%clk 01:21:20]} {[%emt
00:04:04]} 5. Be2 {[%clk 01:25:05]} {[%emt 00:02:02]} Be7 {[%clk 01:19:20]}
{[%emt 00:02:32]} 6. O-O {[%clk 01:25:14]} {[%emt 00:00:20]} O-O {[%clk
01:19:03]} {[%emt 00:00:48]} 7. h3 {[%clk 01:25:12]} {[%emt 00:00:31]} c6
{[%clk 01:12:37]} {[%emt 00:06:57]} 8. Qd3 {[%clk 01:19:10]} {[%emt 00:06:31]}
exd4 {[%clk 01:04:39]} {[%emt 00:08:28]} 9. Nxd4 {[%clk 01:18:37]} {[%emt
00:01:03]} d5 {[%clk 01:01:41]} {[%emt 00:03:28]} 10. Qg3 {[%clk 01:12:01]}
{[%emt 00:07:05]} Nxe4 {[%clk 00:46:16]} {[%emt 00:15:56]} 11. Nxe4 {[%clk
01:11:04]} {[%emt 00:01:26]} dxe4 {[%clk 00:32:24]} {[%emt 00:14:22]} 12. Bh6
{[%clk 00:58:34]} {[%emt 00:13:00]} Bf6 {[%clk 00:32:02]} {[%emt 00:00:52]} 13.
Nf5 {[%clk 00:46:40]} {[%emt 00:12:24]} g6 {[%clk 00:31:39]} {[%emt 00:00:53]}
14. Bxf8 {[%clk 00:45:24]} {[%emt 00:01:45]} Kxf8 {[%clk 00:21:04]} {[%emt
00:11:05]} 15. Nd6 {[%clk 00:41:58]} {[%emt 00:03:56]} Be5 {[%clk 00:10:05]}
{[%emt 00:11:30]} 16. Qa3 {[%clk 00:41:33]} {[%emt 00:00:54]} Bxd6 {[%clk
00:10:22]} {[%emt 00:00:13]} 17. Qxd6+ {[%clk 00:41:50]} {[%emt 00:00:13]} Qe7
{[%clk 00:10:51]} {[%emt 00:00:01]} 18. Rad1 {[%clk 00:39:25]} {[%emt
00:02:54]} Qxd6 {[%clk 00:06:59]} {[%emt 00:04:23]} 19. Rxd6 {[%clk 00:39:46]}
{[%emt 00:00:08]} Ke7 {[%clk 00:07:28]} {[%emt 00:00:01]} 20. Rfd1 {[%clk
00:39:40]} {[%emt 00:00:36]} Nb6 {[%clk 00:07:43]} {[%emt 00:00:16]} 21. R6d4
{[%clk 00:36:35]} {[%emt 00:03:34]} f5 {[%clk 00:07:28]} {[%emt 00:00:45]} 22.
Rd8 {[%clk 00:33:36]} {[%emt 00:03:29]} Be6 {[%clk 00:07:38]} {[%emt 00:00:20]}
23. Rxa8 {[%clk 00:33:48]} {[%emt 00:00:19]} Nxa8 {[%clk 00:08:06]} {[%emt
00:00:02]} 24. g3 {[%clk 00:31:49]} {[%emt 00:02:28]} Nb6 {[%clk 00:06:36]}
{[%emt 00:02:00]} 25. f3 {[%clk 00:26:49]} {[%emt 00:05:30]} Nd5 {[%clk
00:04:27]} {[%emt 00:02:40]} 26. fxe4 {[%clk 00:24:46]} {[%emt 00:02:33]} fxe4
{[%clk 00:04:55]} {[%emt 00:00:01]} 27. h4 {[%clk 00:21:39]} {[%emt 00:03:37]}
Kf6 {[%clk 00:03:09]} {[%emt 00:02:17]} 28. Kf2 {[%clk 00:13:14]} {[%emt
00:08:55]} Ke5 {[%clk 00:02:11]} {[%emt 00:01:29]} 29. c4 {[%clk 00:11:56]}
{[%emt 00:01:48]} Nb4 {[%clk 00:02:07]} {[%emt 00:00:34]} 30. Rd2 {[%clk
00:09:34]} {[%emt 00:02:52]} Nxa2 {[%clk 00:01:38]} {[%emt 00:00:59]} 31. Ke3
{[%clk 00:09:06]} {[%emt 00:00:57]} Nb4 {[%clk 00:02:03]} {[%emt 00:00:06]} 32.
b3 {[%clk 00:06:55]} {[%emt 00:02:41]} h5 {[%emt 00:03:54]} 1/2-1/2

[Event "Polofinale MCR junioru 2023"]
[Site "Czech Republic"]
[Date "2023.11.16"]
[Round "7.27"]
[White "Vana, Jan"]
[Black "Mydlar, Matej"]
[Result "1/2-1/2"]
[TimeControl "90 min per 40 moves + 15 min + 30 sec / move from move 1"]
[WhiteFideId "23726016"]
[BlackFideId "23735074"]
[WhiteElo "1965"]
[BlackElo "1809"]

1. e4 {[%clk 01:30:21]} {[%emt 00:00:39]} c5 {[%clk 01:30:46]} {[%emt
00:00:13]} 2. Nc3 {[%clk 01:30:47]} {[%emt 00:00:05]} Nc6 {[%clk 01:30:01]}
{[%emt 00:01:14]} 3. Bb5 {[%clk 01:31:11]} {[%emt 00:00:07]} d6 {[%clk
01:28:56]} {[%emt 00:01:35]} 4. Bxc6+ {[%clk 01:29:33]} {[%emt 00:02:08]} bxc6
{[%clk 01:28:38]} {[%emt 00:00:47]} 5. d3 {[%clk 01:28:20]} {[%emt 00:01:43]}
g6 {[%clk 01:27:54]} {[%emt 00:01:15]} 6. f4 {[%clk 01:25:38]} {[%emt
00:03:12]} Bg7 {[%clk 01:27:28]} {[%emt 00:00:57]} 7. Nf3 {[%clk 01:25:04]}
{[%emt 00:01:04]} e6 {[%clk 01:24:29]} {[%emt 00:03:29]} 8. O-O {[%clk
01:18:44]} {[%emt 00:06:50]} Ne7 {[%clk 01:22:41]} {[%emt 00:02:19]} 9. e5
{[%clk 01:12:12]} {[%emt 00:07:02]} d5 {[%clk 01:21:10]} {[%emt 00:02:01]} 10.
Na4 {[%clk 01:06:25]} {[%emt 00:06:17]} O-O {[%clk 01:00:29]} {[%emt 00:21:10]}
11. Nxc5 {[%clk 01:01:16]} {[%emt 00:05:39]} f6 {[%clk 01:00:16]} {[%emt
00:00:43]} 12. exf6 {[%clk 00:51:47]} {[%emt 00:09:59]} Bxf6 {[%clk 00:58:39]}
{[%emt 00:02:06]} 13. d4 {[%clk 00:48:45]} {[%emt 00:03:32]} Nf5 {[%clk
00:55:54]} {[%emt 00:03:01]} 14. Ne5 {[%clk 00:44:21]} {[%emt 00:05:09]} Qb6
{[%clk 00:53:12]} {[%emt 00:03:06]} 15. c3 {[%clk 00:39:42]} {[%emt 00:05:14]}
Qc7 {[%clk 00:52:16]} {[%emt 00:01:25]} 16. Qe2 {[%clk 00:22:02]} {[%emt
00:18:11]} Re8 {[%clk 00:45:30]} {[%emt 00:07:16]} 17. g4 {[%clk 00:14:06]}
{[%emt 00:08:25]} Nd6 {[%clk 00:35:26]} {[%emt 00:10:34]} 18. Bd2 {[%clk
00:12:02]} {[%emt 00:02:36]} a5 {[%clk 00:34:00]} {[%emt 00:01:55]} 19. a4
{[%clk 00:03:52]} {[%emt 00:08:40]} Nb7 {[%clk 00:31:04]} {[%emt 00:03:14]} 20.
Nxb7 {[%clk 00:01:16]} {[%emt 00:03:19]} Bxb7 {[%clk 00:30:59]} {[%emt
00:00:34]} 21. Qe3 {[%clk 00:00:52]} {[%emt 00:00:54]} Ba6 {[%clk 00:24:13]}
{[%emt 00:07:16]} 22. Rfb1 {[%clk 00:00:52]} {[%emt 00:00:30]} Bxe5 {[%clk
00:21:51]} {[%emt 00:02:52]} 23. fxe5 {[%clk 00:00:39]} {[%emt 00:00:44]} Rf8
{[%clk 00:21:48]} {[%emt 00:00:33]} 24. Qg3 {[%clk 00:00:42]} {[%emt 00:00:27]}
Qe7 {[%clk 00:21:17]} {[%emt 00:01:01]} 25. h4 {[%clk 00:00:34]} {[%emt
00:00:38]} Rf7 {[%clk 00:20:35]} {[%emt 00:01:11]} 26. Bg5 {[%clk 00:00:38]}
{[%emt 00:00:27]} Qc7 {[%clk 00:20:45]} {[%emt 00:00:20]} 27. Kg2 {[%clk
00:00:36]} {[%emt 00:00:32]} c5 {[%clk 00:20:54]} {[%emt 00:00:21]} 28. dxc5
{[%clk 00:00:33]} {[%emt 00:00:33]} Qxc5 {[%clk 00:21:08]} {[%emt 00:00:16]} 29.
Bf6 {[%clk 00:00:37]} {[%emt 00:00:27]} Rc8 {[%clk 00:21:10]} {[%emt 00:00:28]}
30. h5 {[%clk 00:00:38]} {[%emt 00:00:30]} d4 {[%clk 00:20:51]} {[%emt
00:00:48]} 31. hxg6 {[%clk 00:00:34]} {[%emt 00:00:34]} hxg6 {[%clk 00:21:01]}
{[%emt 00:00:20]} 32. Qf4 {[%clk 00:00:32]} {[%emt 00:00:32]} Rh7 {[%clk
00:19:52]} {[%emt 00:01:39]} 33. Qg5 {[%clk 00:00:35]} {[%emt 00:00:27]} Bd3
{[%clk 00:19:42]} {[%emt 00:00:38]} 34. Rd1 {[%clk 00:00:33]} {[%emt 00:00:34]}
Qc6+ {[%clk 00:13:22]} {[%emt 00:06:49]} 35. Kg3 {[%clk 00:00:43]} {[%emt
00:00:21]} Rh3+ {[%clk 00:13:23]} {[%emt 00:00:28]} 36. Kxh3 {[%clk 00:00:55]}
{[%emt 00:00:19]} Qf3+ {[%clk 00:13:49]} {[%emt 00:00:04]} 37. Kh2 {[%clk
00:00:33]} {[%emt 00:00:52]} Qf2+ {[%clk 00:14:03]} {[%emt 00:00:16]} 1/2-1/2

[Event "Polofinale MCR junioru 2023"]
[Site "Czech Republic"]
[Date "2023.11.16"]
[Round "7.28"]
[White "Hrbek, Jachym"]
[Black "Sadil, Antonin"]
[Result "0-1"]
[TimeControl "90 min per 40 moves + 15 min + 30 sec / move from move 1"]
[WhiteFideId "23709138"]
[BlackFideId "23735597"]
[WhiteElo "1913"]
[BlackElo "1648"]

1. e4 {[%clk 01:27:05]} {[%emt 00:03:53]} c5 {[%clk 01:30:48]} {[%emt
00:00:14]} 2. Nf3 {[%clk 01:27:23]} {[%emt 00:00:12]} d6 {[%clk 01:31:09]}
{[%emt 00:00:09]} 3. d4 {[%clk 01:27:46]} {[%emt 00:00:07]} cxd4 {[%clk
01:31:31]} {[%emt 00:00:08]} 4. Nxd4 {[%clk 01:28:07]} {[%emt 00:00:08]} Nf6
{[%clk 01:31:53]} {[%emt 00:00:09]} 5. Nc3 {[%clk 01:28:28]} {[%emt 00:00:09]}
g6 {[%clk 01:32:17]} {[%emt 00:00:05]} 6. Be3 {[%clk 01:28:48]} {[%emt
00:00:10]} Bg7 {[%clk 01:32:35]} {[%emt 00:00:12]} 7. f3 {[%clk 01:29:06]}
{[%emt 00:00:12]} O-O {[%clk 01:32:57]} {[%emt 00:00:08]} 8. Qd2 {[%clk
01:29:29]} {[%emt 00:00:07]} Nc6 {[%clk 01:33:15]} {[%emt 00:00:13]} 9. O-O-O
{[%clk 01:29:49]} {[%emt 00:00:09]} d5 {[%clk 01:33:33]} {[%emt 00:00:13]} 10.
exd5 {[%clk 01:29:58]} {[%emt 00:00:20]} Nxd5 {[%clk 01:32:41]} {[%emt
00:01:22]} 11. Nxc6 {[%clk 01:30:06]} {[%emt 00:00:22]} bxc6 {[%clk 01:32:17]}
{[%emt 00:00:55]} 12. Bd4 {[%clk 01:29:56]} {[%emt 00:00:39]} e5 {[%clk
01:29:39]} {[%emt 00:03:08]} 13. Bc5 {[%clk 01:27:25]} {[%emt 00:03:01]} Be6
{[%clk 01:29:27]} {[%emt 00:00:43]} 14. Bc4 {[%clk 01:08:13]} {[%emt 00:19:41]}
Re8 {[%clk 01:28:29]} {[%emt 00:01:29]} 15. Kb1 {[%clk 01:02:19]} {[%emt
00:06:23]} Qc7 {[%clk 01:17:14]} {[%emt 00:11:44]} 16. Ne4 {[%clk 00:54:39]}
{[%emt 00:08:10]} Red8 {[%clk 01:12:37]} {[%emt 00:05:08]} 17. Bb3 {[%clk
00:31:53]} {[%emt 00:23:15]} a5 {[%clk 01:00:41]} {[%emt 00:12:27]} 18. Qf2
{[%clk 00:26:36]} {[%emt 00:05:47]} Qb7 {[%clk 00:56:20]} {[%emt 00:04:50]} 19.
a4 {[%clk 00:18:37]} {[%emt 00:08:30]} f5 {[%clk 00:50:30]} {[%emt 00:06:20]}
20. Nd6 {[%clk 00:15:54]} {[%emt 00:03:13]} Rxd6 {[%clk 00:45:22]} {[%emt
00:05:38]} 21. Bxd6 {[%clk 00:16:11]} {[%emt 00:00:13]} e4 {[%clk 00:44:53]}
{[%emt 00:01:00]} 22. Bc5 {[%clk 00:14:23]} {[%emt 00:02:16]} Rb8 {[%clk
00:42:34]} {[%emt 00:02:51]} 23. Bd4 {[%clk 00:12:58]} {[%emt 00:01:54]} e3
{[%clk 00:40:13]} {[%emt 00:02:51]} 24. Qe2 {[%clk 00:07:56]} {[%emt 00:05:27]}
Bxd4 {[%clk 00:40:18]} {[%emt 00:00:31]} 25. Rxd4 {[%clk 00:00:57]} {[%emt
00:07:29]} Nc3+ {[%clk 00:40:35]} {[%emt 00:00:13]} 26. bxc3 {[%clk 00:01:22]}
{[%emt 00:00:04]} Bxb3 {[%clk 00:40:48]} {[%emt 00:00:17]} 27. Rb4 {[%clk
00:01:03]} {[%emt 00:00:49]} Bxc2+ {[%clk 00:39:24]} {[%emt 00:01:55]} 28. Kxc2
{[%clk 00:01:19]} {[%emt 00:00:13]} axb4 {[%clk 00:39:34]} {[%emt 00:00:21]} 29.
Qxe3 {[%clk 00:00:51]} {[%emt 00:00:58]} Qf7 {[%clk 00:38:35]} {[%emt
00:01:28]} 30. Ra1 {[%clk 00:00:34]} {[%emt 00:00:48]} Qc4 {[%clk 00:35:33]}
{[%emt 00:03:32]} 31. Qd4 {[%clk 00:00:35]} {[%emt 00:00:28]} Qe2+ {[%clk
00:35:02]} {[%emt 00:01:02]} 32. Qd2 {[%clk 00:00:59]} {[%emt 00:00:06]} b3+
{[%clk 00:35:16]} {[%emt 00:00:15]} 0-1

[Event "Polofinale MCR junioru 2023"]
[Site "Czech Republic"]
[Date "2023.11.16"]
[Round "7.29"]
[White "Sprinar, Michal"]
[Black "Babula, Matej"]
[Result "1/2-1/2"]
[TimeControl "90 min per 40 moves + 15 min + 30 sec / move from move 1"]
[WhiteFideId "23714190"]
[BlackFideId "398322"]
[WhiteElo "1742"]
[BlackElo "1899"]

1. e4 {[%clk 01:30:58]} c5 {[%clk 01:30:55]} {[%emt 00:00:05]} 2. Nf3 {[%clk
01:31:22]} {[%emt 00:00:07]} e6 {[%clk 01:31:15]} {[%emt 00:00:10]} 3. d4
{[%clk 01:31:48]} {[%emt 00:00:03]} cxd4 {[%clk 01:31:41]} {[%emt 00:00:04]} 4.
Nxd4 {[%clk 01:32:14]} {[%emt 00:00:05]} a6 {[%clk 01:32:07]} {[%emt 00:00:04]}
5. Nc3 {[%clk 01:32:22]} {[%emt 00:00:21]} b5 {[%clk 01:32:09]} {[%emt
00:00:28]} 6. a3 {[%clk 01:30:08]} {[%emt 00:02:44]} Qc7 {[%clk 01:31:17]}
{[%emt 00:01:22]} 7. Bd3 {[%clk 01:28:47]} {[%emt 00:01:51]} Bc5 {[%clk
01:30:40]} {[%emt 00:01:07]} 8. Nb3 {[%clk 01:28:59]} {[%emt 00:00:17]} Be7
{[%clk 01:30:50]} {[%emt 00:00:21]} 9. O-O {[%clk 01:29:09]} {[%emt 00:00:20]}
Nf6 {[%clk 01:30:31]} {[%emt 00:00:49]} 10. f4 {[%clk 01:24:27]} {[%emt
00:05:13]} d6 {[%clk 01:30:29]} {[%emt 00:00:32]} 11. Be2 {[%clk 01:16:55]}
{[%emt 00:08:02]} Bb7 {[%clk 01:19:27]} {[%emt 00:11:33]} 12. Bf3 {[%clk
01:17:08]} {[%emt 00:00:17]} Nbd7 {[%clk 01:17:21]} {[%emt 00:02:36]} 13. Be3
{[%clk 01:10:20]} {[%emt 00:07:18]} O-O {[%clk 01:13:33]} {[%emt 00:04:18]} 14.
g4 {[%clk 01:10:19]} {[%emt 00:00:31]} Nc5 {[%clk 01:06:14]} {[%emt 00:07:49]}
15. Nxc5 {[%clk 01:09:34]} {[%emt 00:01:15]} dxc5 {[%clk 01:04:48]} {[%emt
00:01:56]} 16. g5 {[%clk 01:08:50]} {[%emt 00:01:13]} Rfd8 {[%clk 00:59:58]}
{[%emt 00:05:20]} 17. Qe1 {[%clk 01:08:58]} {[%emt 00:00:23]} Nd7 {[%clk
00:58:41]} {[%emt 00:01:47]} 18. Qh4 {[%clk 01:00:49]} {[%emt 00:08:38]} c4
{[%clk 00:40:18]} {[%emt 00:18:54]} 19. Qh3 {[%clk 00:45:16]} {[%emt 00:15:58]}
Nf8 {[%clk 00:32:44]} {[%emt 00:08:08]} 20. Bg2 {[%clk 00:41:04]} {[%emt
00:04:42]} Bc5 {[%clk 00:24:55]} {[%emt 00:08:19]} 21. Rad1 {[%clk 00:39:16]}
{[%emt 00:02:18]} Rxd1 {[%clk 00:23:15]} {[%emt 00:02:11]} 22. Rxd1 {[%clk
00:38:38]} {[%emt 00:01:08]} Rd8 {[%clk 00:23:36]} {[%emt 00:00:08]} 23. Rxd8
{[%clk 00:37:11]} {[%emt 00:01:58]} Bxe3+ {[%clk 00:23:59]} {[%emt 00:00:07]}
24. Qxe3 {[%clk 00:37:36]} {[%emt 00:00:05]} Qxd8 {[%clk 00:24:24]} {[%emt
00:00:05]} 25. Kf2 {[%clk 00:35:01]} {[%emt 00:03:03]} h6 {[%clk 00:21:44]}
{[%emt 00:03:11]} 26. h4 {[%clk 00:33:29]} {[%emt 00:02:03]} hxg5 {[%clk
00:22:07]} {[%emt 00:00:07]} 27. hxg5 {[%clk 00:33:22]} {[%emt 00:00:38]} Qd6
{[%clk 00:18:37]} {[%emt 00:04:00]} 28. e5 {[%clk 00:30:16]} {[%emt 00:03:36]}
Qd7 {[%clk 00:18:47]} {[%emt 00:00:19]} 29. Bxb7 {[%clk 00:15:48]} {[%emt
00:14:59]} Qxb7 {[%clk 00:19:15]} {[%emt 00:00:01]} 30. Qe4 {[%clk 00:16:08]}
{[%emt 00:00:10]} Qb6+ {[%clk 00:18:29]} {[%emt 00:01:16]} 31. Qe3 {[%clk
00:14:34]} {[%emt 00:02:04]} Qb7 {[%clk 00:18:38]} {[%emt 00:00:21]} 32. Qe4
{[%clk 00:14:55]} {[%emt 00:00:09]} Qb6+ {[%clk 00:09:20]} {[%emt 00:09:49]} 33.
Qe3 {[%clk 00:14:50]} {[%emt 00:00:34]} Qd8 {[%clk 00:09:19]} {[%emt 00:00:31]}
34. Ke2 {[%clk 00:05:41]} {[%emt 00:09:39]} Ng6 {[%clk 00:09:21]} {[%emt
00:00:29]} 35. Ne4 {[%clk 00:04:57]} {[%emt 00:01:13]} Qd5 {[%clk 00:08:50]}
{[%emt 00:01:00]} 36. c3 {[%clk 00:01:44]} {[%emt 00:03:44]} Ne7 {[%clk
00:07:36]} {[%emt 00:01:43]} 37. Qd4 {[%clk 00:00:37]} {[%emt 00:01:38]} Qxd4
{[%clk 00:06:49]} {[%emt 00:01:17]} 38. cxd4 {[%clk 00:01:02]} {[%emt
00:00:04]} Nf5 {[%clk 00:07:13]} {[%emt 00:00:07]} 39. Nc5 {[%clk 00:01:20]}
{[%emt 00:00:11]} a5 {[%clk 00:06:00]} {[%emt 00:01:44]} 40. Nb7 {[%clk
00:01:01]} {[%emt 00:00:49]} Nxd4+ {[%clk 00:05:21]} {[%emt 00:01:09]} 41. Ke3
{[%clk 00:01:19]} {[%emt 00:00:12]} Nf5+ {[%clk 00:10:19]} {[%emt 00:11:03]} 42.
Ke4 {[%clk 00:12:59]} {[%emt 00:04:51]} b4 {[%clk 00:07:15]} {[%emt 00:03:35]}
43. Nxa5 {[%clk 00:13:10]} {[%emt 00:00:18]} c3 {[%clk 00:07:38]} {[%emt
00:00:07]} 44. bxc3 {[%clk 00:13:10]} {[%emt 00:00:30]} bxa3 {[%clk 00:08:03]}
{[%emt 00:00:04]} 45. Nb3 {[%clk 00:13:14]} {[%emt 00:00:26]} a2 {[%clk
00:08:06]} {[%emt 00:00:28]} 46. Kd3 {[%clk 00:11:36]} {[%emt 00:02:08]} Kh7
{[%clk 00:07:07]} {[%emt 00:01:29]} 47. Kc2 {[%clk 00:10:54]} {[%emt 00:01:12]}
Kg6 {[%clk 00:07:24]} {[%emt 00:00:13]} 48. Kb2 {[%clk 00:10:45]} {[%emt
00:00:40]} Kh5 {[%clk 00:07:30]} {[%emt 00:00:23]} 49. Nc5 {[%clk 00:07:32]}
{[%emt 00:03:43]} Kg4 {[%clk 00:07:07]} {[%emt 00:00:52]} 50. g6 {[%clk
00:07:33]} {[%emt 00:00:30]} fxg6 {[%clk 00:06:48]} {[%emt 00:00:49]} 51. Nxe6
{[%clk 00:07:57]} {[%emt 00:00:05]} Ne7 {[%clk 00:06:31]} {[%emt 00:00:47]} 52.
Kxa2 {[%clk 00:07:26]} {[%emt 00:01:01]} Kf5 {[%clk 00:06:51]} {[%emt
00:00:10]} 53. Nxg7+ {[%clk 00:07:51]} {[%emt 00:00:05]} Kxf4 {[%clk 00:07:17]}
{[%emt 00:00:03]} 54. Kb3 {[%clk 00:07:08]} {[%emt 00:01:13]} Kxe5 {[%clk
00:07:13]} {[%emt 00:00:34]} 55. c4 {[%clk 00:06:37]} {[%emt 00:01:02]} Kf6
{[%clk 00:04:43]} {[%emt 00:03:00]} 56. Ne8+ {[%clk 00:07:01]} {[%emt
00:00:07]} Ke6 {[%clk 00:05:07]} {[%emt 00:00:05]} 57. Nc7+ {[%clk 00:07:26]}
{[%emt 00:00:06]} Ke5 {[%clk 00:04:48]} {[%emt 00:00:49]} 58. Kc3 {[%clk
00:07:37]} {[%emt 00:00:18]} g5 {[%clk 00:04:15]} {[%emt 00:01:04]} 59. Kd3
{[%clk 00:07:46]} {[%emt 00:00:21]} g4 {[%clk 00:04:31]} {[%emt 00:00:14]} 60.
Ke3 {[%clk 00:07:44]} {[%emt 00:00:31]} Nf5+ {[%clk 00:03:56]} {[%emt
00:01:06]} 61. Kf2 {[%clk 00:07:43]} {[%emt 00:00:31]} Kd4 {[%clk 00:02:54]}
{[%emt 00:01:31]} 62. Nd5 {[%clk 00:08:03]} {[%emt 00:00:09]} Kxc4 {[%clk
00:03:13]} {[%emt 00:00:12]} 1/2-1/2

[Event "Polofinale MCR junioru 2023"]
[Site "Czech Republic"]
[Date "2023.11.16"]
[Round "7.30"]
[White "Mrazek, Roman"]
[Black "Gregor, Alexandr"]
[Result "1-0"]
[TimeControl "90 min per 40 moves + 15 min + 30 sec / move from move 1"]
[WhiteFideId "23707062"]
[BlackFideId "23735813"]
[WhiteElo "1866"]
[BlackElo "1601"]

1. e4 {[%clk 01:30:30]} {[%emt 00:24:36]} c5 {[%clk 01:30:30]} {[%emt
00:00:09]} 2. Nf3 {[%clk 01:30:30]} {[%emt 00:00:13]} Nc6 {[%clk 01:30:30]}
{[%emt 00:00:12]} 3. d4 {[%clk 01:30:30]} {[%emt 00:00:05]} cxd4 {[%clk
01:30:30]} {[%emt 00:00:07]} 4. Nxd4 {[%clk 01:30:30]} {[%emt 00:00:04]} g6
{[%clk 01:30:30]} {[%emt 00:00:09]} 5. c4 {[%clk 01:30:30]} {[%emt 00:00:17]}
Bg7 {[%clk 01:30:30]} {[%emt 00:00:07]} 6. Be3 {[%clk 01:30:30]} {[%emt
00:00:05]} Nf6 {[%clk 01:30:30]} {[%emt 00:00:07]} 7. Nc3 {[%clk 01:30:30]}
{[%emt 00:00:11]} O-O {[%clk 01:30:30]} {[%emt 00:00:13]} 8. Be2 {[%clk
01:30:49]} {[%emt 00:00:27]} d6 {[%clk 01:30:47]} {[%emt 00:00:13]} 9. O-O
{[%clk 01:30:55]} {[%emt 00:00:24]} Bd7 {[%clk 01:30:27]} {[%emt 00:00:51]} 10.
Nc2 {[%clk 01:31:09]} {[%emt 00:00:15]} Be6 {[%clk 01:29:25]} {[%emt 00:01:32]}
11. f3 {[%clk 01:30:20]} {[%emt 00:01:19]} Nd7 {[%clk 01:28:46]} {[%emt
00:01:09]} 12. Qd2 {[%clk 01:27:37]} {[%emt 00:03:11]} a5 {[%clk 01:28:45]}
{[%emt 00:00:33]} 13. Rac1 {[%clk 01:26:07]} {[%emt 00:01:59]} Nc5 {[%clk
01:28:28]} {[%emt 00:00:49]} 14. b3 {[%clk 01:25:14]} {[%emt 00:01:22]} Qc7
{[%clk 01:22:05]} {[%emt 00:06:54]} 15. Rfd1 {[%clk 01:24:15]} {[%emt
00:01:28]} Nb4 {[%clk 01:16:11]} {[%emt 00:06:25]} 16. Nd4 {[%clk 01:20:15]}
{[%emt 00:04:28]} Bd7 {[%clk 01:15:37]} {[%emt 00:01:06]} 17. Kh1 {[%clk
01:17:59]} {[%emt 00:02:44]} Bc6 {[%clk 01:06:11]} {[%emt 00:09:58]} 18. Qb2
{[%clk 01:11:52]} {[%emt 00:06:32]} a4 {[%clk 00:48:29]} {[%emt 00:18:17]} 19.
a3 {[%clk 01:04:01]} {[%emt 00:08:21]} Bxd4 {[%clk 00:46:16]} {[%emt 00:02:43]}
20. Bxd4 {[%clk 01:04:19]} {[%emt 00:00:11]} Nxb3 {[%clk 00:46:23]} {[%emt
00:00:24]} 21. axb4 {[%clk 01:04:36]} {[%emt 00:00:13]} Nxc1 {[%clk 00:46:22]}
{[%emt 00:00:31]} 22. Rxc1 {[%clk 01:04:15]} {[%emt 00:00:51]} Rfb8 {[%clk
00:45:10]} {[%emt 00:01:42]} 23. b5 {[%clk 01:00:06]} {[%emt 00:04:39]} Bd7
{[%clk 00:45:29]} {[%emt 00:00:10]} 24. Nd5 {[%clk 01:00:04]} {[%emt 00:00:32]}
Qd8 {[%clk 00:45:29]} {[%emt 00:00:31]} 25. Bb6 {[%clk 01:00:03]} {[%emt
00:00:31]} a3 {[%clk 00:43:39]} {[%emt 00:02:20]} 26. Qc3 {[%clk 00:59:27]}
{[%emt 00:01:05]} Qf8 {[%clk 00:43:39]} {[%emt 00:00:30]} 27. Nc7 {[%clk
00:59:30]} {[%emt 00:00:27]} Ra4 {[%clk 00:35:29]} {[%emt 00:08:41]} 28. Bd1
{[%clk 00:58:55]} {[%emt 00:01:03]} 1-0